[Event "Titled Tuesday Blitz August 1 Early 2023"]
[White "Rustemov, Alexander"]
[Black "Materia, Marco"]
[WhiteFideId "4119002"]
[BlackFideId "45150451"]
[WhiteElo "2846"]
[BlackElo "2726"]
[Result "1/2-1/2"]
[Round "11"]
[TimeControl "180+1"]
[Date "2023.08.01"]
[WhiteClock "0:00:17"]
[BlackClock "0:01:19"]
[Board "20"]

1. d4 {[%clk 0:03:00]}  Nf6 {[%clk 0:02:59]} 2. c4 {[%clk 0:03:01]}  e6 {[%clk 0:02:59]} 3. Nf3 {[%clk 0:03:01]}  d5 {[%clk 0:03:00]} 4. Nc3 {[%clk 0:03:01]}  Be7 {[%clk 0:03:00]} 5. Bg5 {[%clk 0:03:01]}  O-O {[%clk 0:02:59]} 6. e3 {[%clk 0:03:01]}  h6 {[%clk 0:02:58]} 7. Bxf6 {[%clk 0:03:01]}  Bxf6 {[%clk 0:02:59]} 8. Rc1 {[%clk 0:03:01]}  c6 {[%clk 0:02:55]} 9. Bd3 {[%clk 0:03:02]}  Nd7 {[%clk 0:02:54]} 10. O-O {[%clk 0:03:02]}  dxc4 {[%clk 0:02:54]} 11. Bxc4 {[%clk 0:03:03]}  e5 {[%clk 0:02:55]} 12. h3 {[%clk 0:03:04]}  exd4 {[%clk 0:02:54]} 13. exd4 {[%clk 0:03:04]}  Nb6 {[%clk 0:02:55]} 14. Bb3 {[%clk 0:03:05]}  Bf5 {[%clk 0:02:55]} 15. Re1 {[%clk 0:03:05]}  Qd7 {[%clk 0:02:53]} 16. Ne5 {[%clk 0:02:55]}  Bxe5 {[%clk 0:02:53]} 17. dxe5 {[%clk 0:02:54]}  Qxd1 {[%clk 0:02:50]} 18. Rcxd1 {[%clk 0:02:53]}  Rad8 {[%clk 0:02:51]} 19. g4 {[%clk 0:02:52]}  Be6 {[%clk 0:02:48]} 20. f4 {[%clk 0:02:47]}  Bxb3 {[%clk 0:02:46]} 21. axb3 {[%clk 0:02:46]}  Nd5 {[%clk 0:02:40]} 22. Nxd5 {[%clk 0:02:43]}  Rxd5 {[%clk 0:02:40]} 23. Rxd5 {[%clk 0:02:41]}  cxd5 {[%clk 0:02:41]} 24. Rc1 {[%clk 0:02:33]}  g5 {[%clk 0:02:39]} 25. Kf2 {[%clk 0:02:12]}  gxf4 {[%clk 0:02:38]} 26. Kf3 {[%clk 0:02:12]}  f5 {[%clk 0:02:37]} 27. Rd1 {[%clk 0:01:36]}  fxg4+ {[%clk 0:02:34]} 28. hxg4 {[%clk 0:01:37]}  Rd8 {[%clk 0:02:21]} 29. Kxf4 {[%clk 0:01:36]}  Kf7 {[%clk 0:02:21]} 30. Kf5 {[%clk 0:01:24]}  d4 {[%clk 0:02:18]} 31. Ke4 {[%clk 0:01:21]}  Rg8 {[%clk 0:02:18]} 32. Rf1+ {[%clk 0:01:12]}  Ke7 {[%clk 0:02:16]} 33. Rf4 {[%clk 0:01:12]}  Rd8 {[%clk 0:02:06]} 34. Kd3 {[%clk 0:01:11]}  Rd5 {[%clk 0:02:07]} 35. Rf5 {[%clk 0:01:07]}  Rb5 {[%clk 0:02:00]} 36. Kc4 {[%clk 0:01:06]}  Rb6 {[%clk 0:01:58]} 37. Rh5 {[%clk 0:00:55]}  a5 {[%clk 0:01:42]} 38. Kxd4 {[%clk 0:00:44]}  Rxb3 {[%clk 0:01:39]} 39. Rxh6 {[%clk 0:00:44]}  Rxb2 {[%clk 0:01:40]} 40. Rh7+ {[%clk 0:00:39]}  Ke6 {[%clk 0:01:39]} 41. Rh6+ {[%clk 0:00:38]}  Ke7 {[%clk 0:01:39]} 42. Rh7+ {[%clk 0:00:23]}  Ke6 {[%clk 0:01:37]} 43. Rh6+ {[%clk 0:00:23]}  Kf7 {[%clk 0:01:22]} 44. e6+ {[%clk 0:00:23]}  Ke7 {[%clk 0:01:21]} 45. Kd5 {[%clk 0:00:18]}  Rb5+ {[%clk 0:01:20]} 46. Kc4 {[%clk 0:00:18]}  Rg5 {[%clk 0:01:20]} 47. Rh7+ {[%clk 0:00:17]}  Kxe6 {[%clk 0:01:20]} 48. Rxb7 {[%clk 0:00:17]}  Rxg4+ {[%clk 0:01:20]} 49. Kb3 {[%clk 0:00:17]}  Kd6 {[%clk 0:01:19]} 50. Ra7 {[%clk 0:00:17]}  a4+ {[%clk 0:01:18]} 51. Rxa4 {[%clk 0:00:16]}  Rxa4 {[%clk 0:01:19]} 52. Kxa4 {[%clk 0:00:17]} 1/2-1/2


[Site "https://www.chess.com"]

[Event "Titled Tuesday Blitz August 1 Early 2023"]
[White "Przybylski, Wojciech"]
[Black "Harvey, Marcus R"]
[WhiteFideId "1117599"]
[BlackFideId "400092"]
[WhiteElo "2651"]
[BlackElo "2810"]
[Result "0-1"]
[Round "11"]
[TimeControl "180+1"]
[Date "2023.08.01"]
[WhiteClock "0:00:01"]
[BlackClock "0:01:39"]
[Board "22"]

1. d4 {[%clk 0:03:00]}  Nf6 {[%clk 0:03:00]} 2. c4 {[%clk 0:03:00]}  e6 {[%clk 0:03:00]} 3. Nf3 {[%clk 0:03:00]}  d5 {[%clk 0:03:00]} 4. Nc3 {[%clk 0:03:00]}  c6 {[%clk 0:03:01]} 5. Bg5 {[%clk 0:02:58]}  h6 {[%clk 0:03:01]} 6. Bh4 {[%clk 0:02:57]}  dxc4 {[%clk 0:03:00]} 7. e4 {[%clk 0:02:58]}  g5 {[%clk 0:03:01]} 8. Bg3 {[%clk 0:02:58]}  b5 {[%clk 0:03:02]} 9. Be2 {[%clk 0:02:58]}  Bb7 {[%clk 0:03:02]} 10. Ne5 {[%clk 0:02:56]}  Nbd7 {[%clk 0:03:01]} 11. f4 {[%clk 0:02:53]}  b4 {[%clk 0:02:56]} 12. Na4 {[%clk 0:02:52]}  Nxe4 {[%clk 0:02:56]} 13. O-O {[%clk 0:02:40]}  Nxg3 {[%clk 0:02:52]} 14. hxg3 {[%clk 0:02:40]}  gxf4 {[%clk 0:02:43]} 15. gxf4 {[%clk 0:02:37]}  Nxe5 {[%clk 0:02:41]} 16. fxe5 {[%clk 0:02:36]}  Qg5 {[%clk 0:02:28]} 17. Bxc4 {[%clk 0:02:14]}  c5 {[%clk 0:02:19]} 18. Bb5+ {[%clk 0:02:11]}  Kd8 {[%clk 0:02:19]} 19. dxc5+ {[%clk 0:02:06]}  Bd5 {[%clk 0:02:19]} 20. Rf2 {[%clk 0:02:01]}  Rc8 {[%clk 0:02:09]} 21. c6 {[%clk 0:01:47]}  Qxe5 {[%clk 0:02:03]} 22. Qd2 {[%clk 0:01:21]}  Bd6 {[%clk 0:02:00]} 23. Kf1 {[%clk 0:00:59]}  Rg8 {[%clk 0:01:55]} 24. c7+ {[%clk 0:00:23]}  Rxc7 {[%clk 0:01:54]} 25. Re1 {[%clk 0:00:16]}  Qh2 {[%clk 0:01:51]} 26. Re3 {[%clk 0:00:10]}  Rc1+ {[%clk 0:01:44]} 27. Ke2 {[%clk 0:00:09]}  Qh5+ {[%clk 0:01:41]} 28. Ref3 {[%clk 0:00:07]}  Rxg2 {[%clk 0:01:40]} 29. Qxc1 {[%clk 0:00:01]}  Qxf3+ {[%clk 0:01:39]} 0-1


[Site "https://www.chess.com"]

[Event "Titled Tuesday Blitz August 1 Early 2023"]
[White "Hoang, Thi Bao Tram"]
[Black "Lamaze, Simon"]
[WhiteFideId "12401102"]
[BlackFideId "36069264"]
[WhiteElo "2653"]
[BlackElo "2797"]
[Result "1-0"]
[Round "11"]
[TimeControl "180+1"]
[Date "2023.08.01"]
[WhiteClock "0:00:13"]
[BlackClock "0:00:09"]
[Board "23"]

1. Nf3 {[%clk 0:03:00]}  Nf6 {[%clk 0:02:59]} 2. g3 {[%clk 0:03:00]}  d5 {[%clk 0:03:00]} 3. Bg2 {[%clk 0:03:01]}  e6 {[%clk 0:03:00]} 4. O-O {[%clk 0:03:00]}  c5 {[%clk 0:02:59]} 5. d4 {[%clk 0:03:00]}  cxd4 {[%clk 0:02:59]} 6. Nxd4 {[%clk 0:03:00]}  e5 {[%clk 0:02:59]} 7. Nb3 {[%clk 0:02:59]}  a5 {[%clk 0:02:58]} 8. a4 {[%clk 0:02:45]}  Nc6 {[%clk 0:02:55]} 9. Nc3 {[%clk 0:02:45]}  Be6 {[%clk 0:02:50]} 10. Nb5 {[%clk 0:02:32]}  Be7 {[%clk 0:02:48]} 11. Bg5 {[%clk 0:02:09]}  O-O {[%clk 0:02:38]} 12. c3 {[%clk 0:01:53]}  Ne4 {[%clk 0:02:12]} 13. Bxe4 {[%clk 0:01:31]}  Bxg5 {[%clk 0:02:03]} 14. Bg2 {[%clk 0:01:30]}  Be7 {[%clk 0:02:03]} 15. Qc2 {[%clk 0:01:27]}  Qb6 {[%clk 0:01:59]} 16. Rad1 {[%clk 0:01:24]}  Rad8 {[%clk 0:01:58]} 17. Nc1 {[%clk 0:01:21]}  Rd7 {[%clk 0:01:54]} 18. e3 {[%clk 0:01:02]}  Rfd8 {[%clk 0:01:53]} 19. h3 {[%clk 0:01:02]}  g6 {[%clk 0:01:45]} 20. Ne2 {[%clk 0:01:00]}  Bf6 {[%clk 0:01:42]} 21. Rd2 {[%clk 0:00:55]}  h5 {[%clk 0:01:29]} 22. Rfd1 {[%clk 0:00:53]}  h4 {[%clk 0:01:27]} 23. g4 {[%clk 0:00:49]}  Bg7 {[%clk 0:01:22]} 24. Kh1 {[%clk 0:00:43]}  Qc5 {[%clk 0:01:21]} 25. Ng1 {[%clk 0:00:41]}  e4 {[%clk 0:01:20]} 26. Nd4 {[%clk 0:00:37]}  g5 {[%clk 0:01:17]} 27. f3 {[%clk 0:00:30]}  Ne5 {[%clk 0:00:54]} 28. fxe4 {[%clk 0:00:29]}  Nc4 {[%clk 0:00:55]} 29. Re2 {[%clk 0:00:27]}  dxe4 {[%clk 0:00:52]} 30. Bxe4 {[%clk 0:00:24]}  Qe5 {[%clk 0:00:51]} 31. Rf1 {[%clk 0:00:19]}  Bd5 {[%clk 0:00:42]} 32. Bxd5 {[%clk 0:00:18]}  Qxd5+ {[%clk 0:00:40]} 33. e4 {[%clk 0:00:17]}  Qd6 {[%clk 0:00:28]} 34. Nf5 {[%clk 0:00:17]}  Qc6 {[%clk 0:00:23]} 35. Nf3 {[%clk 0:00:16]}  f6 {[%clk 0:00:21]} 36. b3 {[%clk 0:00:16]}  Nb6 {[%clk 0:00:15]} 37. N3d4 {[%clk 0:00:15]}  Qc8 {[%clk 0:00:15]} 38. Ne6 {[%clk 0:00:13]}  Qc6 {[%clk 0:00:11]} 39. Nxd8 {[%clk 0:00:13]}  Rxd8 {[%clk 0:00:09]} 40. Ne7+ {[%clk 0:00:13]} 1-0


[Site "https://www.chess.com"]

[Event "Titled Tuesday Blitz August 1 Early 2023"]
[White "Ovchinnikov, Vsevolod"]
[Black "Kushko, Dmitriy"]
[WhiteFideId "24176842"]
[BlackFideId "14162261"]
[WhiteElo "2635"]
[BlackElo "2774"]
[Result "0-1"]
[Round "11"]
[TimeControl "180+1"]
[Date "2023.08.01"]
[WhiteClock "0:00:00"]
[BlackClock "0:00:53"]
[Board "24"]

1. d4 {[%clk 0:03:00]}  g6 {[%clk 0:03:00]} 2. Nf3 {[%clk 0:03:00]}  Bg7 {[%clk 0:03:00]} 3. g3 {[%clk 0:03:00]}  d6 {[%clk 0:03:00]} 4. Bg2 {[%clk 0:03:01]}  Nf6 {[%clk 0:03:01]} 5. c4 {[%clk 0:02:59]}  O-O {[%clk 0:03:01]} 6. Nc3 {[%clk 0:02:59]}  Nc6 {[%clk 0:03:01]} 7. O-O {[%clk 0:02:58]}  e5 {[%clk 0:03:01]} 8. e3 {[%clk 0:02:23]}  Rb8 {[%clk 0:02:52]} 9. b3 {[%clk 0:02:21]}  Bg4 {[%clk 0:02:40]} 10. h3 {[%clk 0:02:14]}  Bxf3 {[%clk 0:02:40]} 11. Bxf3 {[%clk 0:02:14]}  exd4 {[%clk 0:02:07]} 12. exd4 {[%clk 0:02:14]}  Nxd4 {[%clk 0:02:08]} 13. Qxd4 {[%clk 0:01:11]}  Nd7 {[%clk 0:02:08]} 14. Qxa7 {[%clk 0:00:31]}  Bxc3 {[%clk 0:02:03]} 15. Bh6 {[%clk 0:00:31]}  Bxa1 {[%clk 0:01:51]} 16. Bxf8 {[%clk 0:00:20]}  Kxf8 {[%clk 0:01:52]} 17. Bxb7 {[%clk 0:00:08]}  Bf6 {[%clk 0:01:44]} 18. Bd5 {[%clk 0:00:07]}  Ne5 {[%clk 0:01:02]} 19. f4 {[%clk 0:00:00]}  Nd3 {[%clk 0:00:53]} 0-1


[Site "https://www.chess.com"]

[Event "Titled Tuesday Blitz August 1 Early 2023"]
[White "Zemlyanskii, Ivan"]
[Black "Perez, Maximiliano"]
[WhiteFideId "24249971"]
[BlackFideId "117234"]
[WhiteElo "2919"]
[BlackElo "2575"]
[Result "0-1"]
[Round "11"]
[TimeControl "180+1"]
[Date "2023.08.01"]
[WhiteClock "0:00:02"]
[BlackClock "0:00:11"]
[Board "26"]

1. d4 {[%clk 0:03:00]}  Nf6 {[%clk 0:02:59]} 2. c4 {[%clk 0:03:00]}  e6 {[%clk 0:02:59]} 3. Bf4 {[%clk 0:03:01]}  Bb4+ {[%clk 0:02:48]} 4. Nd2 {[%clk 0:03:00]}  d5 {[%clk 0:02:34]} 5. a3 {[%clk 0:02:56]}  Bd6 {[%clk 0:01:40]} 6. Bg3 {[%clk 0:02:46]}  O-O {[%clk 0:01:33]} 7. Ngf3 {[%clk 0:02:43]}  b6 {[%clk 0:01:27]} 8. e3 {[%clk 0:02:41]}  Bb7 {[%clk 0:01:27]} 9. cxd5 {[%clk 0:02:41]}  exd5 {[%clk 0:01:26]} 10. Rc1 {[%clk 0:02:41]}  c5 {[%clk 0:01:21]} 11. Bd3 {[%clk 0:02:34]}  c4 {[%clk 0:01:20]} 12. Bb1 {[%clk 0:02:32]}  Re8 {[%clk 0:01:18]} 13. O-O {[%clk 0:02:29]}  Bxg3 {[%clk 0:01:18]} 14. hxg3 {[%clk 0:02:28]}  Nbd7 {[%clk 0:01:16]} 15. Ne1 {[%clk 0:02:00]}  b5 {[%clk 0:01:14]} 16. b3 {[%clk 0:01:57]}  Qb6 {[%clk 0:00:59]} 17. bxc4 {[%clk 0:01:46]}  bxc4 {[%clk 0:01:00]} 18. Bc2 {[%clk 0:01:46]}  Ba6 {[%clk 0:00:55]} 19. Nb1 {[%clk 0:01:34]}  Qa5 {[%clk 0:00:48]} 20. Nc3 {[%clk 0:01:33]}  g6 {[%clk 0:00:41]} 21. Qd2 {[%clk 0:01:26]}  Rab8 {[%clk 0:00:38]} 22. Nf3 {[%clk 0:01:16]}  Rb2 {[%clk 0:00:30]} 23. Rb1 {[%clk 0:01:12]}  Reb8 {[%clk 0:00:30]} 24. Rxb2 {[%clk 0:00:59]}  Rxb2 {[%clk 0:00:30]} 25. Rb1 {[%clk 0:00:57]}  Qxa3 {[%clk 0:00:30]} 26. Rxb2 {[%clk 0:00:52]}  Qxb2 {[%clk 0:00:31]} 27. Ne5 {[%clk 0:00:52]}  Bb7 {[%clk 0:00:21]} 28. f3 {[%clk 0:00:40]}  Qb6 {[%clk 0:00:18]} 29. Na4 {[%clk 0:00:36]}  Qd6 {[%clk 0:00:18]} 30. Qc3 {[%clk 0:00:34]}  a6 {[%clk 0:00:17]} 31. Qb2 {[%clk 0:00:33]}  Bc6 {[%clk 0:00:17]} 32. Nxc6 {[%clk 0:00:31]}  Qxc6 {[%clk 0:00:17]} 33. Nc3 {[%clk 0:00:32]}  Nb6 {[%clk 0:00:17]} 34. Qa3 {[%clk 0:00:31]}  Nfd7 {[%clk 0:00:17]} 35. Qxa6 {[%clk 0:00:29]}  Qe6 {[%clk 0:00:17]} 36. Kf2 {[%clk 0:00:28]}  Kg7 {[%clk 0:00:16]} 37. Qa1 {[%clk 0:00:27]}  h5 {[%clk 0:00:15]} 38. Qb2 {[%clk 0:00:25]}  Qf6 {[%clk 0:00:15]} 39. Ne2 {[%clk 0:00:24]}  Qc6 {[%clk 0:00:12]} 40. e4 {[%clk 0:00:22]}  Nf6 {[%clk 0:00:10]} 41. e5 {[%clk 0:00:22]}  Nfd7 {[%clk 0:00:10]} 42. f4 {[%clk 0:00:22]}  Nf8 {[%clk 0:00:10]} 43. Qc3 {[%clk 0:00:17]}  Ne6 {[%clk 0:00:09]} 44. Qf3 {[%clk 0:00:16]}  Nd7 {[%clk 0:00:07]} 45. f5 {[%clk 0:00:16]}  gxf5 {[%clk 0:00:07]} 46. Qxf5 {[%clk 0:00:16]}  Qb6 {[%clk 0:00:07]} 47. Qxh5 {[%clk 0:00:16]}  Kf8 {[%clk 0:00:05]} 48. Qh6+ {[%clk 0:00:15]}  Ke7 {[%clk 0:00:05]} 49. Qh4+ {[%clk 0:00:15]}  Ke8 {[%clk 0:00:05]} 50. Bd3 {[%clk 0:00:14]}  cxd3 {[%clk 0:00:04]} 51. Qh8+ {[%clk 0:00:13]}  Ke7 {[%clk 0:00:04]} 52. Qh4+ {[%clk 0:00:14]}  Ke8 {[%clk 0:00:04]} 53. Nc3 {[%clk 0:00:12]}  Qxd4+ {[%clk 0:00:03]} 54. Qxd4 {[%clk 0:00:12]}  Nxd4 {[%clk 0:00:04]} 55. Ke3 {[%clk 0:00:13]}  Nc6 {[%clk 0:00:02]} 56. Nxd5 {[%clk 0:00:12]}  Ne7 {[%clk 0:00:03]} 57. Nf4 {[%clk 0:00:10]}  Nxe5 {[%clk 0:00:03]} 58. Nxd3 {[%clk 0:00:05]}  Nxd3 {[%clk 0:00:03]} 59. Kxd3 {[%clk 0:00:06]}  Kf8 {[%clk 0:00:04]} 60. Ke4 {[%clk 0:00:07]}  Kg7 {[%clk 0:00:05]} 61. Kf4 {[%clk 0:00:07]}  Kg6 {[%clk 0:00:06]} 62. Kg4 {[%clk 0:00:08]}  Ng8 {[%clk 0:00:06]} 63. Kf4 {[%clk 0:00:08]}  Nf6 {[%clk 0:00:07]} 64. g4 {[%clk 0:00:09]}  Nh7 {[%clk 0:00:07]} 65. Kg3 {[%clk 0:00:05]}  Ng5 {[%clk 0:00:08]} 66. Kf4 {[%clk 0:00:05]}  Ne6+ {[%clk 0:00:09]} 67. Ke3 {[%clk 0:00:04]}  Kg5 {[%clk 0:00:10]} 68. Kf3 {[%clk 0:00:05]}  Ng7 {[%clk 0:00:09]} 69. Kg3 {[%clk 0:00:04]}  Ne8 {[%clk 0:00:10]} 70. Kf3 {[%clk 0:00:02]}  Nf6 {[%clk 0:00:11]} 0-1


[Site "https://www.chess.com"]

[Event "Titled Tuesday Blitz August 1 Early 2023"]
[White "Galchenko, Matvey"]
[Black "Preotu, Razvan"]
[WhiteFideId "24175480"]
[BlackFideId "2613280"]
[WhiteElo "2875"]
[BlackElo "2720"]
[Result "1/2-1/2"]
[Round "11"]
[TimeControl "180+1"]
[Date "2023.08.01"]
[WhiteClock "0:00:11"]
[BlackClock "0:00:10"]
[Board "27"]

1. f4 {[%clk 0:02:42]}  d5 {[%clk 0:02:59]} 2. Nf3 {[%clk 0:02:42]}  Nf6 {[%clk 0:02:59]} 3. g3 {[%clk 0:02:42]}  c6 {[%clk 0:02:59]} 4. Bg2 {[%clk 0:02:41]}  Qb6 {[%clk 0:02:59]} 5. d4 {[%clk 0:02:41]}  h6 {[%clk 0:02:55]} 6. O-O {[%clk 0:02:41]}  Bf5 {[%clk 0:02:55]} 7. e3 {[%clk 0:02:39]}  e6 {[%clk 0:02:55]} 8. c4 {[%clk 0:02:27]}  c5 {[%clk 0:02:52]} 9. cxd5 {[%clk 0:02:25]}  exd5 {[%clk 0:02:51]} 10. Nc3 {[%clk 0:02:25]}  cxd4 {[%clk 0:02:33]} 11. Nxd4 {[%clk 0:02:24]}  Be4 {[%clk 0:02:34]} 12. Nxe4 {[%clk 0:02:21]}  dxe4 {[%clk 0:02:34]} 13. Qa4+ {[%clk 0:02:20]}  Nbd7 {[%clk 0:02:31]} 14. Rd1 {[%clk 0:02:19]}  Bc5 {[%clk 0:02:30]} 15. Nf5 {[%clk 0:02:17]}  g6 {[%clk 0:02:26]} 16. b4 {[%clk 0:02:11]}  Qxb4 {[%clk 0:02:21]} 17. Qxb4 {[%clk 0:02:05]}  Bxb4 {[%clk 0:02:22]} 18. Rb1 {[%clk 0:02:03]}  gxf5 {[%clk 0:01:40]} 19. Rxb4 {[%clk 0:02:03]}  Nc5 {[%clk 0:01:41]} 20. Bh3 {[%clk 0:01:24]}  Ke7 {[%clk 0:01:07]} 21. Ba3 {[%clk 0:01:23]}  b6 {[%clk 0:01:04]} 22. Bxf5 {[%clk 0:01:23]}  Rhd8 {[%clk 0:01:03]} 23. Rbd4 {[%clk 0:01:08]}  Ke8 {[%clk 0:00:43]} 24. g4 {[%clk 0:00:40]}  Rxd4 {[%clk 0:00:40]} 25. Rxd4 {[%clk 0:00:38]}  Rd8 {[%clk 0:00:36]} 26. Bb2 {[%clk 0:00:27]}  Rxd4 {[%clk 0:00:31]} 27. Bxd4 {[%clk 0:00:28]}  Ke7 {[%clk 0:00:31]} 28. h4 {[%clk 0:00:22]}  Nd5 {[%clk 0:00:20]} 29. Kf2 {[%clk 0:00:19]}  Nb4 {[%clk 0:00:20]} 30. g5 {[%clk 0:00:17]}  h5 {[%clk 0:00:09]} 31. a3 {[%clk 0:00:12]}  Nc2 {[%clk 0:00:08]} 32. Bxc5+ {[%clk 0:00:07]}  bxc5 {[%clk 0:00:09]} 33. a4 {[%clk 0:00:06]}  Na3 {[%clk 0:00:06]} 34. Bxe4 {[%clk 0:00:06]}  Nc4 {[%clk 0:00:06]} 35. Ke2 {[%clk 0:00:05]}  a5 {[%clk 0:00:06]} 36. Bf3 {[%clk 0:00:04]}  Nb2 {[%clk 0:00:05]} 37. Bxh5 {[%clk 0:00:05]}  Nxa4 {[%clk 0:00:06]} 38. Kd3 {[%clk 0:00:05]}  Nb6 {[%clk 0:00:06]} 39. Bd1 {[%clk 0:00:04]}  a4 {[%clk 0:00:07]} 40. e4 {[%clk 0:00:04]}  c4+ {[%clk 0:00:07]} 41. Kc3 {[%clk 0:00:04]}  a3 {[%clk 0:00:08]} 42. h5 {[%clk 0:00:04]}  Kf8 {[%clk 0:00:07]} 43. h6 {[%clk 0:00:04]}  Nd7 {[%clk 0:00:05]} 44. Bc2 {[%clk 0:00:03]}  Nc5 {[%clk 0:00:05]} 45. Bb1 {[%clk 0:00:03]}  Ne6 {[%clk 0:00:02]} 46. Kxc4 {[%clk 0:00:02]}  Nxf4 {[%clk 0:00:03]} 47. e5 {[%clk 0:00:02]}  Ne6 {[%clk 0:00:03]} 48. h7 {[%clk 0:00:02]}  Kg7 {[%clk 0:00:03]} 49. Kb3 {[%clk 0:00:02]}  Nxg5 {[%clk 0:00:03]} 50. Kxa3 {[%clk 0:00:03]}  Nf3 {[%clk 0:00:04]} 51. Kb4 {[%clk 0:00:03]}  Nxe5 {[%clk 0:00:05]} 52. Kc5 {[%clk 0:00:04]}  Nd7+ {[%clk 0:00:04]} 53. Kd6 {[%clk 0:00:04]}  Nf8 {[%clk 0:00:05]} 54. h8=Q+ {[%clk 0:00:04]}  Kxh8 {[%clk 0:00:05]} 55. Ke7 {[%clk 0:00:05]}  Kg7 {[%clk 0:00:06]} 56. Kd6 {[%clk 0:00:05]}  Kf6 {[%clk 0:00:06]} 57. Kd5 {[%clk 0:00:06]}  Ne6 {[%clk 0:00:07]} 58. Ke4 {[%clk 0:00:06]}  Kg5 {[%clk 0:00:07]} 59. Kf3 {[%clk 0:00:06]}  Nd4+ {[%clk 0:00:07]} 60. Kf2 {[%clk 0:00:07]}  Kf4 {[%clk 0:00:07]} 61. Bd3 {[%clk 0:00:07]}  Nb3 {[%clk 0:00:07]} 62. Bb1 {[%clk 0:00:07]}  Nc5 {[%clk 0:00:08]} 63. Ba2 {[%clk 0:00:08]}  f6 {[%clk 0:00:08]} 64. Bb1 {[%clk 0:00:08]}  Na4 {[%clk 0:00:09]} 65. Bc2 {[%clk 0:00:07]}  Nc3 {[%clk 0:00:10]} 66. Bd3 {[%clk 0:00:08]}  Ne4+ {[%clk 0:00:10]} 67. Ke2 {[%clk 0:00:09]}  f5 {[%clk 0:00:09]} 68. Bc2 {[%clk 0:00:09]}  Kg3 {[%clk 0:00:09]} 69. Bxe4 {[%clk 0:00:09]}  fxe4 {[%clk 0:00:09]} 70. Ke3 {[%clk 0:00:10]}  Kg4 {[%clk 0:00:10]} 71. Kxe4 {[%clk 0:00:11]} 1/2-1/2


[Site "https://www.chess.com"]

[Event "Titled Tuesday Blitz August 1 Early 2023"]
[White "Rahman, Masruri"]
[Black "Do Valle Cardoso, Lucas"]
[WhiteFideId "7101163"]
[BlackFideId "2163144"]
[WhiteElo "2788"]
[BlackElo "2676"]
[Result "1-0"]
[Round "11"]
[TimeControl "180+1"]
[Date "2023.08.01"]
[WhiteClock "0:00:37"]
[BlackClock "0:00:01"]
[Board "28"]

1. d4 {[%clk 0:03:00]}  d5 {[%clk 0:02:59]} 2. Bf4 {[%clk 0:03:00]}  Nf6 {[%clk 0:02:59]} 3. e3 {[%clk 0:03:00]}  Bf5 {[%clk 0:02:51]} 4. c4 {[%clk 0:02:59]}  c6 {[%clk 0:02:49]} 5. Nc3 {[%clk 0:02:59]}  e6 {[%clk 0:02:49]} 6. Qb3 {[%clk 0:03:00]}  Qb6 {[%clk 0:02:46]} 7. c5 {[%clk 0:03:00]}  Qxb3 {[%clk 0:02:47]} 8. axb3 {[%clk 0:03:01]}  Nbd7 {[%clk 0:02:32]} 9. h3 {[%clk 0:02:54]}  a6 {[%clk 0:02:32]} 10. b4 {[%clk 0:02:55]}  Rc8 {[%clk 0:02:27]} 11. Nf3 {[%clk 0:02:55]}  h6 {[%clk 0:02:26]} 12. Nd2 {[%clk 0:02:55]}  Be7 {[%clk 0:02:20]} 13. Nb3 {[%clk 0:02:54]}  Bd8 {[%clk 0:02:20]} 14. Bd6 {[%clk 0:02:54]}  Bc7 {[%clk 0:02:13]} 15. Bxc7 {[%clk 0:02:45]}  Rxc7 {[%clk 0:02:14]} 16. Be2 {[%clk 0:02:41]}  O-O {[%clk 0:02:07]} 17. O-O {[%clk 0:02:41]}  e5 {[%clk 0:01:59]} 18. Rfe1 {[%clk 0:02:30]}  Bc2 {[%clk 0:01:56]} 19. Na5 {[%clk 0:02:29]}  Re8 {[%clk 0:01:50]} 20. Bf1 {[%clk 0:02:22]}  Nf8 {[%clk 0:01:43]} 21. Rac1 {[%clk 0:02:15]}  Bf5 {[%clk 0:01:26]} 22. Ne2 {[%clk 0:02:04]}  Bc8 {[%clk 0:01:19]} 23. dxe5 {[%clk 0:02:00]}  Rxe5 {[%clk 0:01:19]} 24. Nd4 {[%clk 0:02:01]}  Re8 {[%clk 0:01:16]} 25. Bd3 {[%clk 0:01:59]}  g6 {[%clk 0:01:16]} 26. Kh2 {[%clk 0:01:41]}  Kg7 {[%clk 0:01:16]} 27. g4 {[%clk 0:01:39]}  Rce7 {[%clk 0:01:12]} 28. Kg2 {[%clk 0:01:38]}  Ne6 {[%clk 0:01:12]} 29. Nxe6+ {[%clk 0:01:35]}  fxe6 {[%clk 0:01:04]} 30. e4 {[%clk 0:01:33]}  e5 {[%clk 0:01:01]} 31. Re2 {[%clk 0:01:23]}  Be6 {[%clk 0:00:55]} 32. f3 {[%clk 0:01:18]}  dxe4 {[%clk 0:00:20]} 33. Bxe4 {[%clk 0:01:17]}  Bd5 {[%clk 0:00:15]} 34. Rce1 {[%clk 0:01:13]}  Nxe4 {[%clk 0:00:10]} 35. fxe4 {[%clk 0:01:14]}  Be6 {[%clk 0:00:11]} 36. Rd2 {[%clk 0:01:11]}  Rf8 {[%clk 0:00:10]} 37. Rf1 {[%clk 0:01:08]}  Rxf1 {[%clk 0:00:09]} 38. Kxf1 {[%clk 0:01:09]}  h5 {[%clk 0:00:09]} 39. Rg2 {[%clk 0:01:01]}  hxg4 {[%clk 0:00:08]} 40. hxg4 {[%clk 0:01:02]}  Rd7 {[%clk 0:00:07]} 41. Kg1 {[%clk 0:00:59]}  g5 {[%clk 0:00:04]} 42. Kh2 {[%clk 0:00:56]}  Kg6 {[%clk 0:00:03]} 43. Rf2 {[%clk 0:00:50]}  Rh7+ {[%clk 0:00:02]} 44. Kg3 {[%clk 0:00:48]}  Rh8 {[%clk 0:00:02]} 45. Rd2 {[%clk 0:00:46]}  Bc8 {[%clk 0:00:01]} 46. Rd6+ {[%clk 0:00:46]}  Kf7 {[%clk 0:00:02]} 47. Nxb7 {[%clk 0:00:38]}  Ke7 {[%clk 0:00:01]} 48. Na5 {[%clk 0:00:38]}  Rh4 {[%clk 0:00:01]} 49. Nxc6+ {[%clk 0:00:38]}  Kf7 {[%clk 0:00:01]} 50. Nxe5+ {[%clk 0:00:38]}  Ke7 {[%clk 0:00:01]} 51. Ng6+ {[%clk 0:00:37]} 1-0


[Site "https://www.chess.com"]

[Event "Titled Tuesday Blitz August 1 Early 2023"]
[White "Manukyan, Sargis A."]
[Black "Krzyzanowski, Marcin"]
[WhiteFideId "13303970"]
[BlackFideId "1132199"]
[WhiteElo "2649"]
[BlackElo "2785"]
[Result "1-0"]
[Round "11"]
[TimeControl "180+1"]
[Date "2023.08.01"]
[WhiteClock "0:02:05"]
[BlackClock "0:00:04"]
[Board "29"]

1. d4 {[%clk 0:03:00]}  Nf6 {[%clk 0:02:59]} 2. c4 {[%clk 0:03:01]}  d6 {[%clk 0:02:59]} 3. Nf3 {[%clk 0:03:01]}  g6 {[%clk 0:02:59]} 4. Nc3 {[%clk 0:03:01]}  Bf5 {[%clk 0:03:00]} 5. h3 {[%clk 0:02:57]}  Bg7 {[%clk 0:02:50]} 6. Bf4 {[%clk 0:02:57]}  O-O {[%clk 0:02:49]} 7. Nd2 {[%clk 0:02:58]}  c5 {[%clk 0:02:44]} 8. d5 {[%clk 0:02:58]}  Bd7 {[%clk 0:02:40]} 9. e4 {[%clk 0:02:58]}  a6 {[%clk 0:02:13]} 10. a4 {[%clk 0:02:58]}  e5 {[%clk 0:02:07]} 11. Be3 {[%clk 0:02:46]}  Ne8 {[%clk 0:01:51]} 12. g4 {[%clk 0:02:45]}  Kh8 {[%clk 0:01:49]} 13. Bd3 {[%clk 0:02:45]}  Nf6 {[%clk 0:01:33]} 14. Qe2 {[%clk 0:02:41]}  Bc8 {[%clk 0:01:22]} 15. f3 {[%clk 0:02:41]}  Nbd7 {[%clk 0:01:20]} 16. h4 {[%clk 0:02:42]}  h5 {[%clk 0:01:20]} 17. Nf1 {[%clk 0:02:34]}  Nb8 {[%clk 0:00:52]} 18. Bg5 {[%clk 0:02:32]}  hxg4 {[%clk 0:00:48]} 19. h5 {[%clk 0:02:32]}  Qe8 {[%clk 0:00:35]} 20. h6 {[%clk 0:02:30]}  Nh5 {[%clk 0:00:26]} 21. hxg7+ {[%clk 0:02:25]}  Kxg7 {[%clk 0:00:27]} 22. fxg4 {[%clk 0:02:25]}  f6 {[%clk 0:00:26]} 23. gxh5 {[%clk 0:02:17]}  fxg5 {[%clk 0:00:27]} 24. hxg6 {[%clk 0:02:16]}  Qxg6 {[%clk 0:00:26]} 25. Ng3 {[%clk 0:02:17]}  Rf4 {[%clk 0:00:25]} 26. Nh5+ {[%clk 0:02:16]}  Kf8 {[%clk 0:00:19]} 27. Nxf4 {[%clk 0:02:17]}  exf4 {[%clk 0:00:20]} 28. e5 {[%clk 0:02:16]}  Bf5 {[%clk 0:00:19]} 29. Bxf5 {[%clk 0:02:14]}  Qxf5 {[%clk 0:00:19]} 30. e6 {[%clk 0:02:11]}  f3 {[%clk 0:00:16]} 31. Qe4 {[%clk 0:02:07]}  Qf6 {[%clk 0:00:14]} 32. O-O-O {[%clk 0:02:07]}  b5 {[%clk 0:00:13]} 33. Rdf1 {[%clk 0:02:05]}  g4 {[%clk 0:00:04]} 34. Qxg4 {[%clk 0:02:05]} 1-0


[Site "https://www.chess.com"]